bitfinex/quotes_BTCUSD_20250308
["timestamp","ask_amount","ask_price","bid_price","bid_amount"]
[1741444047433,0.0001697,86742.0,86741.0,0.242099]
[1741444047760,0.0001697,86742.0,86741.0,0.25361283]
[1741444047969,0.0001697,86742.0,86741.0,0.37049283]
[1741444048273,0.02063423,86742.0,86741.0,0.13591383]
[1741444048476,0.02063423,86742.0,86741.0,0.25279383]
[1741444048676,0.02063423,86742.0,86741.0,0.14291383]
[1741444048882,0.02063423,86742.0,86741.0,0.26679383]
[1741444049242,0.02063423,86742.0,86741.0,0.14991383]
[1741444049441,0.03216223,86742.0,86741.0,0.14991383]
[1741444050072,0.03216223,86742.0,86741.0,0.26679383]
[1741444050279,0.03216223,86742.0,86741.0,0.14991383]
[1741444050490,0.011528,86744.0,86741.0,0.14991383]
[1741444050706,0.230566,86743.0,86742.0,0.11688]
[1741444050951,0.242094,86743.0,86742.0,0.12839324]
[1741444051449,0.03170696,86743.0,86742.0,0.12839324]
[1741444052027,0.03170696,86743.0,86742.0,0.13539324]
[1741444052937,0.03170696,86743.0,86742.0,0.14239324]
[1741444053345,0.03170696,86743.0,86742.0,0.02551324]
[1741444054011,0.03170696,86743.0,86742.0,0.14239324]
[1741444054137,0.03170696,86743.0,86742.0,0.02551324]
[1741444054344,0.03170696,86743.0,86742.0,0.14239324]
[1741444054769,0.03170696,86743.0,86742.0,0.02551324]
[1741444055008,0.03170696,86743.0,86742.0,0.14239324]
[1741444055169,0.03170696,86743.0,86742.0,0.02551324]
[1741444055366,0.03170696,86743.0,86742.0,0.14239324]
[1741444055805,0.03170696,86743.0,86742.0,0.02551324]
[1741444056026,0.03170696,86743.0,86742.0,0.14239324]
[1741444056259,0.03170696,86743.0,86742.0,0.02551324]
[1741444056439,0.03170696,86743.0,86742.0,0.14239324]
[1741444057023,0.03170696,86743.0,86742.0,0.02551324]
[1741444057239,0.26227296,86743.0,86742.0,0.14239324]
[1741444057883,0.26227296,86743.0,86742.0,0.02551324]
[1741444058043,0.26227296,86743.0,86742.0,0.14239324]
[1741444058699,0.56227296,86743.0,86742.0,0.14239324]
[1741444059083,0.56227296,86743.0,86742.0,0.01700766]
[1741444059343,0.27843912,86743.0,86742.0,0.01700766]
[1741444059590,0.52053312,86743.0,86742.0,0.01700766]
[1741444060031,0.54124295,86743.0,86742.0,0.01700766]
[1741444062447,0.54124295,86743.0,86742.0,0.00743324]
[1741444063905,0.54124295,86743.0,86742.0,0.00777304]
[1741444064129,0.54141285,86743.0,86742.0,0.00777304]
[1741444065529,0.74141285,86743.0,86742.0,0.00777304]
[1741444065737,1.29182685,86743.0,86742.0,0.00777304]
[1741444065996,0.542127,86731.0,86730.0,0.0003396]
[1741444068107,0.542127,86731.0,86730.0,0.0043396]
[1741444069527,0.542127,86731.0,86730.0,0.0113396]
[1741444071444,0.55074899,86731.0,86730.0,0.0113396]
[1741444071667,0.57342863,86731.0,86730.0,0.0113396]
[1741444077821,0.57292863,86731.0,86730.0,0.0113396]
[1741444083107,0.85601875,86731.0,86730.0,0.0113396]
[1741444086377,0.85601875,86731.0,86730.0,0.0073396]
[1741444086789,0.85601875,86731.0,86730.0,0.0113396]
[1741444087001,0.85601875,86731.0,86730.0,0.0073396]
[1741444087213,0.85601875,86731.0,86730.0,0.0003396]
[1741444087628,0.85701875,86731.0,86730.0,0.0073396]
[1741444088108,0.85718865,86731.0,86730.0,0.0073396]
[1741444088301,0.85618865,86731.0,86730.0,0.0043396]
[1741444088646,0.85618865,86731.0,86730.0,0.0113396]
[1741444088647,0.85718865,86731.0,86730.0,0.0113396]
[1741444091477,0.97402865,86731.0,86730.0,0.0113396]
[1741444094677,1.17402865,86731.0,86730.0,0.0113396]
[1741444095561,1.17302865,86731.0,86730.0,0.0003396]
[1741444095967,0.97302865,86731.0,86730.0,0.0023396]
[1741444096443,0.97298865,86731.0,86730.0,0.0003396]
[1741444096851,0.97398865,86731.0,86730.0,0.0063396]
[1741444097094,0.97398865,86731.0,86730.0,0.0093396]
[1741444098461,0.97398865,86731.0,86730.0,0.0063396]
[1741444098662,0.97398865,86731.0,86730.0,0.0103396]
[1741444098864,0.74339065,86731.0,86720.0,0.06912984]
[1741444099109,0.242155,86721.0,86720.0,0.06912984]
[1741444100269,0.243155,86721.0,86720.0,0.07612984]
[1741444102619,0.243155,86721.0,86720.0,0.12122984]
[1741444103006,0.243155,86721.0,86720.0,0.13091432]
[1741444104700,0.244155,86721.0,86720.0,0.13091432]
[1741444105641,0.544155,86721.0,86720.0,0.01668448]
[1741444106050,0.544155,86721.0,86720.0,0.007]
[1741444109820,0.544155,86721.0,86720.0,0.00469]
[1741444110033,0.544155,86721.0,86720.0,7e-05]
[1741444111331,0.544155,86721.0,86720.0,0.0004098]
[1741444113320,0.011531,86718.0,86714.0,0.0751998]
[1741444113530,0.011531,86718.0,86715.0,0.0477]
[1741444113736,0.011531,86718.0,86715.0,0.0573765]
[1741444113943,0.242164,86718.0,86715.0,0.0573765]
[1741444114168,0.011531,86716.0,86715.0,0.0573765]
[1741444114380,0.002,86721.0,86717.0,0.011531]
[1741444114592,0.011531,86720.0,86718.0,0.0477]
[1741444114805,0.011531,86719.0,86718.0,0.05742144]
[1741444115023,0.011531,86719.0,86718.0,0.0477]
[1741444115233,0.011531,86720.0,86718.0,0.0457]
[1741444115627,0.31153,86723.0,86719.0,0.00972144]
[1741444115905,0.001,86720.0,86719.0,0.00972144]
[1741444116505,0.001,86720.0,86719.0,0.08522144]
[1741444116717,0.011531,86721.0,86719.0,0.08522144]
[1741444117273,0.001,86720.0,86719.0,0.08522144]
[1741444118074,0.011531,86721.0,86719.0,0.08522144]
[1741444118301,0.012531,86721.0,86720.0,0.0485]
[1741444118486,0.012531,86721.0,86720.0,0.124]
[1741444118618,0.001,86721.0,86720.0,0.124]
[1741444118823,0.001,86721.0,86720.0,0.13372144]
[1741444119107,0.001,86721.0,86720.0,0.13283711]
[1741444119497,0.012531,86721.0,86720.0,0.13283711]
[1741444119696,0.013531,86721.0,86720.0,0.13283711]
[1741444119902,0.013531,86721.0,86720.0,0.12311567]
[1741444121941,0.012531,86721.0,86720.0,0.12311567]
[1741444122300,0.012531,86721.0,86720.0,0.12211567]
[1741444122904,0.012531,86721.0,86720.0,0.12245547]
[1741444123106,0.0127009,86721.0,86720.0,0.12245547]
[1741444123370,0.0137009,86721.0,86720.0,0.12745547]
[1741444130312,0.0137009,86721.0,86720.0,0.13715047]
[1741444132342,0.0137009,86721.0,86720.0,0.12745547]
[1741444133247,0.0021699,86721.0,86720.0,0.12745547]
[1741444133450,0.0021699,86721.0,86720.0,0.37930847]
[1741444135243,0.0011699,86721.0,86720.0,0.37930847]
[1741444135445,0.0021699,86721.0,86720.0,0.38530847]
[1741444135949,0.0011699,86721.0,86720.0,0.37930847]
[1741444136115,0.0011699,86721.0,86720.0,0.38530847]
[1741444136380,0.0021699,86721.0,86720.0,0.38530847]
[1741444136554,0.0011699,86721.0,86720.0,0.38030847]
[1741444137170,0.0011699,86721.0,86720.0,0.40184932]
[1741444137758,0.0011699,86721.0,86720.0,0.14515047]
[1741444138389,0.0011699,86721.0,86720.0,0.13815047]
[1741444138980,0.0011699,86721.0,86720.0,0.36877747]
[1741444139349,0.0011699,86721.0,86720.0,0.38030847]
[1741444139560,0.0011699,86721.0,86720.0,0.14968147]
[1741444139958,0.2317939,86721.0,86720.0,0.13815047]
[1741444140177,0.2433249,86721.0,86720.0,0.13815047]
[1741444140335,0.0137009,86721.0,86720.0,0.14515047]
[1741444140535,0.0021699,86721.0,86720.0,0.14515047]
[1741444140768,0.2443249,86721.0,86720.0,0.14515047]
[1741444140962,0.2443249,86721.0,86720.0,0.13545547]
[1741444141227,0.2443249,86721.0,86720.0,0.14508175]
[1741444141418,0.0137009,86721.0,86720.0,0.14508175]
[1741444141616,0.2443249,86721.0,86720.0,0.14508175]
[1741444142486,0.2443249,86721.0,86720.0,0.13545547]
[1741444142702,0.0021699,86721.0,86720.0,0.13545547]
[1741444143042,0.0021699,86721.0,86720.0,0.14508182]
[1741444143463,0.0021699,86721.0,86720.0,0.17115367]
[1741444147379,0.0021699,86721.0,86720.0,0.17276767]
[1741444148636,0.0011699,86721.0,86720.0,0.1656148]
[1741444148855,0.0021699,86721.0,86720.0,0.1716148]
[1741444149262,0.0011699,86721.0,86720.0,0.1586148]
[1741444149498,0.0011699,86721.0,86720.0,0.1646148]
[1741444149678,0.0011699,86721.0,86720.0,0.1716148]
[1741444149887,0.0011699,86721.0,86720.0,0.17115367]
[1741444150283,0.0011699,86721.0,86720.0,0.16415367]
[1741444150635,0.0011699,86721.0,86720.0,0.1716148]
[1741444151069,0.0011699,86721.0,86720.0,0.17115367]
[1741444152479,0.0011699,86721.0,86720.0,0.17140142]
[1741444157086,0.0011699,86721.0,86720.0,0.17115367]
[1741444157349,0.0011699,86721.0,86720.0,0.1713872]
[1741444158032,0.0011699,86721.0,86720.0,0.17115367]
[1741444158763,0.0011699,86721.0,86720.0,0.17142321]
[1741444165458,0.0011699,86721.0,86720.0,0.17115367]
[1741444166972,0.0011699,86721.0,86720.0,0.17139913]
[1741444167190,0.0011699,86721.0,86720.0,0.17115367]
[1741444167829,0.0011699,86721.0,86720.0,0.17143005]
[1741444168037,0.0011699,86721.0,86720.0,0.17115367]
[1741444168239,0.0011699,86721.0,86720.0,0.17138492]
[1741444168440,0.0011699,86721.0,86720.0,0.17115367]
[1741444170098,0.0011699,86721.0,86720.0,0.17260275]
[1741444171947,0.0011699,86721.0,86720.0,0.1714499]
[1741444176800,0.01730229,86741.0,86721.0,0.01454085]
[1741444176961,0.011528,86740.0,86734.0,0.25665985]
[1741444177182,0.011528,86740.0,86734.0,0.37317985]
[1741444177602,0.011528,86740.0,86735.0,0.00954441]
[1741444177999,0.011528,86740.0,86734.0,0.37317985]
[1741444178576,0.011528,86740.0,86736.0,0.01454085]
[1741444178959,0.011528,86741.0,86735.0,0.01454085]
[1741444179163,0.011528,86741.0,86737.0,0.00954441]
[1741444179371,0.011528,86741.0,86735.0,0.01454085]
[1741444179522,0.011528,86741.0,86738.0,0.00954441]
[1741444179725,0.011528,86741.0,86735.0,0.01454085]
[1741444179930,0.011528,86740.0,86739.0,0.00954441]
[1741444180191,0.079728,86740.0,86734.0,0.007]
[1741444180395,0.242116,86735.0,86734.0,0.007]
[1741444181190,0.011528,86740.0,86734.0,0.007]
[1741444181993,0.242104,86739.0,86734.0,0.007]
[1741444182512,0.011528,86738.0,86734.0,0.007]
[1741444182731,0.230582,86737.0,86734.0,0.007]
[1741444182958,0.230582,86737.0,86734.0,0.005]
[1741444183305,0.230582,86737.0,86730.0,0.01153]
[1741444183502,0.242111,86737.0,86728.0,0.347125]
[1741444183857,0.011529,86736.0,86728.0,0.347125]
[1741444184285,0.242116,86735.0,86734.0,0.012]
[1741444186108,0.011529,86735.0,86734.0,0.012]
[1741444186370,0.242116,86735.0,86734.0,0.02153315]
[1741444186615,0.242116,86735.0,86734.0,0.01453315]
[1741444186781,0.242116,86735.0,86728.0,0.11652]
[1741444186949,0.011529,86734.0,86728.0,0.11652]
[1741444187157,0.011529,86735.0,86729.0,0.25166615]
[1741444187589,0.011529,86735.0,86729.0,0.02106315]
[1741444187867,0.011529,86735.0,86734.0,0.005]
[1741444188328,0.011529,86735.0,86729.0,0.01153]
[1741444188506,0.011529,86735.0,86734.0,0.00953315]
[1741444188710,0.242116,86735.0,86729.0,0.005]
[1741444189142,0.242116,86735.0,86734.0,0.00953315]
[1741444189927,0.242116,86735.0,86728.0,0.12805]
[1741444190134,0.242111,86737.0,86734.0,0.00953315]
[1741444190334,0.011529,86736.0,86734.0,0.012]
[1741444190535,0.011529,86736.0,86735.0,0.00953315]
[1741444190716,0.011529,86736.0,86734.0,0.012]
[1741444190915,0.011529,86736.0,86735.0,0.00953315]
[1741444191117,0.011529,86736.0,86734.0,0.007]
[1741444191349,0.011529,86736.0,86735.0,0.00953315]
[1741444191659,0.011529,86736.0,86734.0,0.012]
[1741444191866,0.011529,86736.0,86735.0,0.00953315]
[1741444192014,0.011529,86736.0,86735.0,0.01453315]
[1741444192228,0.011528,86738.0,86735.0,0.005]
[1741444192414,0.242109,86738.0,86735.0,0.01453315]
[1741444192783,0.011529,86737.0,86736.0,0.00953315]
[1741444193858,0.011529,86737.0,86735.0,0.005]
[1741444194084,0.230584,86736.0,86731.0,0.230597]
[1741444194269,0.242113,86736.0,86734.0,0.0003398]
[1741444195311,0.242113,86736.0,86735.0,0.007]
[1741444195865,0.242113,86736.0,86734.0,0.0003398]
[1741444196715,0.011529,86735.0,86734.0,0.0003398]
[1741444197414,0.011529,86735.0,86734.0,0.0053398]
[1741444197620,0.011529,86735.0,86734.0,0.0003398]
[1741444198049,0.011529,86735.0,86734.0,0.0053398]
[1741444198459,0.242113,86736.0,86734.0,0.0053398]
[1741444198654,0.011528,86741.0,86735.0,0.011529]
[1741444198876,0.011528,86738.0,86734.0,0.0123398]
[1741444199071,0.242111,86737.0,86734.0,0.0123398]
[1741444199546,0.242111,86737.0,86734.0,0.0053398]
[1741444199762,0.011529,86736.0,86734.0,0.0053398]
[1741444199971,0.242116,86735.0,86734.0,0.0123398]
[1741444200181,0.011529,86735.0,86734.0,0.0123398]
[1741444200362,0.011529,86735.0,86734.0,0.0073398]
[1741444200363,0.242116,86735.0,86734.0,0.0073398]
[1741444201596,0.242116,86735.0,86734.0,0.0123398]
[1741444201826,0.242116,86735.0,86734.0,0.0073398]
[1741444202035,0.242116,86735.0,86734.0,0.0003398]
[1741444202243,0.242116,86735.0,86734.0,0.0053398]
[1741444202453,0.242116,86735.0,86734.0,0.0123398]
[1741444202867,0.011529,86735.0,86734.0,0.0123398]
[1741444203071,0.242116,86735.0,86734.0,0.0123398]
[1741444203297,0.242116,86735.0,86734.0,0.0053398]
[1741444204203,0.242116,86735.0,86734.0,0.0123398]
[1741444211173,0.610316,86735.0,86734.0,0.0123398]
[1741444211498,0.656755,86721.0,86720.0,0.00045547]
[1741444211700,0.773155,86721.0,86720.0,0.00045547]
[1741444212329,0.542197,86706.0,86705.0,0.0003396]
[1741444212531,0.726797,86706.0,86705.0,0.0003396]
[1741444212938,0.74909652,86706.0,86705.0,0.0003396]
[1741444214159,0.68089652,86706.0,86705.0,0.0003396]
[1741444214824,0.68089652,86706.0,86705.0,0.0033396]
[1741444215860,0.68969141,86706.0,86705.0,0.0033396]
[1741444216451,0.68969141,86706.0,86705.0,0.00324163]
[1741444216871,0.69069141,86706.0,86705.0,0.01024163]
[1741444221782,0.33483252,86706.0,86705.0,0.01024163]
[1741444221984,0.02329952,86706.0,86705.0,0.01024163]
[1741444222404,0.001,86706.0,86705.0,0.02836161]
[1741444223455,0.001,86706.0,86705.0,0.11730246]
[1741444223667,0.001,86706.0,86705.0,0.23485564]
[1741444223900,7.104e-05,86721.0,86720.0,0.319558]
[1741444224091,7.104e-05,86721.0,86720.0,0.0774]
[1741444224309,7.104e-05,86721.0,86720.0,0.08296089]
[1741444224725,0.01160204,86721.0,86720.0,0.00656089]
[1741444225131,0.230633,86718.0,86715.0,0.1164]
[1741444225358,0.011531,86716.0,86715.0,0.1164]
[1741444227140,0.011531,86716.0,86715.0,0.1938]
[1741444227884,0.011531,86716.0,86715.0,0.1978]
[1741444228155,0.01160204,86721.0,86715.0,0.1978]
[1741444228384,0.011531,86719.0,86715.0,0.1978]
[1741444228901,0.011531,86719.0,86715.0,0.2048]
[1741444229105,0.242161,86719.0,86715.0,0.2048]
[1741444229351,0.011531,86716.0,86715.0,0.2048]
[1741444229561,0.011531,86716.0,86715.0,0.1978]
[1741444229971,0.011531,86716.0,86715.0,0.1938]
[1741444230424,0.011531,86716.0,86715.0,0.1978]
[1741444230635,0.011531,86716.0,86715.0,0.1938]
[1741444231006,0.011531,86716.0,86715.0,0.1978]
[1741444231209,0.011531,86716.0,86715.0,0.004]
[1741444232073,0.011531,86716.0,86715.0,0.011]
[1741444232401,0.0117009,86716.0,86715.0,0.011]
[1741444232801,0.011533,86706.0,86705.0,0.00024163]
[1741444233253,0.011533,86706.0,86705.0,0.00672878]
[1741444233438,0.011533,86706.0,86705.0,0.00024163]
[1741444234351,0.011533,86706.0,86705.0,0.00324163]
[1741444234783,0.011533,86706.0,86705.0,0.00024163]
[1741444235123,0.011533,86706.0,86705.0,0.00324163]
[1741444238214,0.011533,86706.0,86705.0,0.01024163]
[1741444238422,0.012533,86706.0,86705.0,0.01024163]
[1741444242659,0.312533,86706.0,86705.0,0.01024163]
[1741444242890,0.359333,86706.0,86705.0,0.01024163]
[1741444244120,0.64242312,86706.0,86705.0,0.01024163]
[1741444244812,0.59562312,86706.0,86705.0,0.01024163]
[1741444249215,0.59562312,86706.0,86705.0,0.00908486]
[1741444255296,0.66482312,86706.0,86705.0,0.00908486]
[1741444255979,0.96696012,86706.0,86705.0,0.00208486]
[1741444256182,0.66382312,86706.0,86705.0,0.00208486]
[1741444256382,0.80676812,86706.0,86705.0,0.00208486]
[1741444256582,0.011535,86686.0,86685.0,0.0475]
[1741444256784,0.00542226,86686.0,86685.0,0.05414273]
[1741444257343,0.230714,86688.0,86685.0,0.05414273]
[1741444257589,0.011535,86689.0,86685.0,0.05414273]
[1741444257894,0.242249,86688.0,86685.0,0.05414273]
[1741444258108,0.242249,86688.0,86685.0,0.05814273]
[1741444258345,0.242249,86688.0,86685.0,0.05414273]
[1741444258557,0.011535,86687.0,86685.0,0.05814273]
[1741444258757,0.001,86686.0,86685.0,0.06514273]
[1741444259177,0.02156157,86686.0,86685.0,0.06398587]
[1741444259390,0.001,86686.0,86685.0,0.06398587]
[1741444259858,0.001,86686.0,86685.0,0.07552187]
[1741444259967,7.101e-05,86689.0,86685.0,0.06452187]
[1741444260164,0.011535,86687.0,86685.0,0.06398587]
[1741444261150,0.011535,86687.0,86685.0,0.05998587]
[1741444261492,0.011535,86687.0,86685.0,0.06398587]
[1741444261732,0.242252,86686.0,86685.0,0.05698587]
[1741444261962,0.243252,86686.0,86685.0,0.05734314]
[1741444262230,0.243252,86686.0,86685.0,0.011]
[1741444262444,0.542252,86686.0,86685.0,0.004]
[1741444262864,0.542252,86686.0,86685.0,0.011]
[1741444263073,0.542252,86686.0,86685.0,0.007]
[1741444263283,0.242269,86680.0,86679.0,0.0003398]
[1741444264429,0.542269,86680.0,86679.0,0.0003398]
[1741444264643,0.658549,86680.0,86679.0,0.0043398]
[1741444264886,0.658549,86680.0,86679.0,0.0003398]
[1741444265886,0.659549,86680.0,86679.0,0.0043398]
[1741444266547,0.658549,86680.0,86679.0,0.0043398]
[1741444266682,0.659549,86680.0,86679.0,0.0083398]
[1741444266893,0.659549,86680.0,86679.0,0.0043398]
[1741444267097,0.708549,86680.0,86679.0,0.0063398]
[1741444267909,0.99163912,86680.0,86679.0,0.0063398]
[1741444270670,0.99163912,86680.0,86679.0,0.00058718]
[1741444270878,1.50254812,86680.0,86679.0,1e-08]
[1741444271091,1.06083912,86680.0,86679.0,1e-08]
[1741444271735,1.14163912,86680.0,86679.0,1e-08]
[1741444271960,0.011536,86678.0,86677.0,0.0003394]
[1741444272175,0.740222,86678.0,86677.0,0.0003394]
[1741444272430,1.13871212,86678.0,86677.0,0.0003394]
[1741444273653,0.542336,86656.0,86648.0,0.22372]
[1741444274064,0.542336,86656.0,86648.0,0.0756]
[1741444275023,0.542336,86656.0,86655.0,0.00543768]
[1741444275230,0.542336,86656.0,86655.0,0.00843768]
[1741444275231,0.543336,86656.0,86655.0,0.00843768]
[1741444275567,0.543336,86656.0,86655.0,0.00543768]
[1741444275844,0.543336,86656.0,86655.0,0.00843768]
[1741444276429,0.543336,86656.0,86655.0,0.09023768]
[1741444276832,0.301,86656.0,86655.0,0.09023768]
[1741444277071,0.001,86656.0,86655.0,0.15117768]
[1741444277279,0.001,86656.0,86655.0,0.15807804]
[1741444278123,0.001,86656.0,86655.0,0.17261889]
[1741444279072,0.28309012,86666.0,86665.0,0.0494]
[1741444279304,0.28309012,86666.0,86665.0,0.1312]
[1741444279501,0.29462812,86666.0,86665.0,0.1302]
[1741444279664,0.011538,86666.0,86665.0,0.13708947]
[1741444281138,0.011538,86669.0,86665.0,0.13708947]
[1741444281318,0.011538,86669.0,86665.0,0.14008947]
[1741444281513,0.001,86666.0,86665.0,0.14708947]
[1741444282091,0.011538,86668.0,86665.0,0.13708947]
[1741444282287,0.011538,86670.0,86666.0,0.0818]
[1741444282791,0.011538,86669.0,86666.0,0.0818]
[1741444282966,0.011538,86668.0,86667.0,0.00688947]
[1741444283373,0.242303,86668.0,86667.0,0.00688947]
[1741444284131,0.011538,86669.0,86667.0,0.00688947]
[1741444284695,0.242299,86670.0,86667.0,0.00688947]
[1741444284894,0.242299,86670.0,86667.0,0.00588947]
[1741444285308,0.242299,86670.0,86667.0,0.00788947]
[1741444285503,0.242299,86670.0,86668.0,0.0818]
[1741444285828,0.001,86669.0,86668.0,0.0818]
[1741444286385,0.311537,86671.0,86668.0,0.0818]
[1741444286603,0.011538,86669.0,86668.0,0.0818]
[1741444287224,0.011538,86669.0,86668.0,0.07818094]
[1741444288332,0.012538,86669.0,86668.0,0.08418094]
[1741444289076,0.012538,86669.0,86668.0,0.008]
[1741444290314,0.012538,86669.0,86668.0,0.0898]
[1741444291568,0.230926,86672.0,86668.0,0.0898]
[1741444291794,0.242298,86670.0,86668.0,0.0898]
[1741444292166,0.011538,86670.0,86668.0,0.0898]
[1741444292371,0.011538,86670.0,86669.0,0.00672425]
[1741444292592,0.230926,86672.0,86669.0,0.00672425]
[1741444292798,0.00017,86672.0,86669.0,0.00672425]
[1741444293128,0.230925,86672.0,86669.0,0.00672425]
[1741444293500,0.00017,86672.0,86669.0,0.00672425]
[1741444293705,0.00017,86672.0,86669.0,0.01372425]
[1741444294081,0.011202,86673.0,86669.0,0.01172425]
[1741444294839,0.011202,86673.0,86669.0,0.00672425]
[1741444295149,0.230749,86674.0,86669.0,0.02326225]
[1741444295581,0.230749,86674.0,86669.0,0.02426225]
[1741444295793,0.230749,86674.0,86669.0,0.01826225]
[1741444295997,0.230749,86674.0,86669.0,0.02226225]
[1741444296173,0.230749,86674.0,86669.0,0.02326225]
[1741444296384,0.00643564,86676.0,86669.0,0.01826225]
[1741444296793,0.00643564,86676.0,86669.0,0.02326225]
[1741444296993,0.242289,86674.0,86669.0,0.01172425]
[1741444297197,0.011537,86673.0,86669.0,0.01172425]
[1741444297601,0.230755,86672.0,86669.0,0.01172425]
[1741444297820,0.011537,86673.0,86669.0,0.005]
[1741444298032,0.242289,86674.0,86670.0,0.00672102]
[1741444298438,0.242289,86674.0,86669.0,0.001]
[1741444298649,0.242289,86674.0,86671.0,0.00672102]
[1741444298819,0.242289,86674.0,86669.0,0.003]
[1741444299031,0.242298,86670.0,86669.0,0.003]
[1741444299438,0.242291,86673.0,86669.0,0.003]
[1741444299600,0.242291,86673.0,86670.0,0.001]
[1741444299800,0.242291,86673.0,86668.0,0.0818]
[1741444300108,0.242289,86674.0,86670.0,0.004]
[1741444301103,0.26038833,86674.0,86670.0,0.004]
[1741444301530,0.242292,86672.0,86668.0,0.0818]
[1741444302092,0.011537,86672.0,86669.0,0.001]
[1741444302325,0.011537,86672.0,86670.0,0.004]
[1741444302621,0.242292,86672.0,86670.0,0.005]
[1741444302830,0.242292,86672.0,86668.0,0.06870027]
[1741444303044,0.011537,86672.0,86668.0,0.07370027]
[1741444303387,0.011537,86674.0,86668.0,0.07470027]
[1741444303623,0.011537,86674.0,86668.0,0.07370027]
[1741444303844,0.011537,86674.0,86670.0,0.001]
[1741444305165,0.011537,86674.0,86668.0,0.07370027]
[1741444305401,0.02061026,86687.0,86685.0,0.242253]
[1741444305606,0.02061026,86687.0,86683.0,0.242259]
[1741444305800,0.02061026,86687.0,86684.0,0.0781]
[1741444306189,0.0387077,86687.0,86684.0,0.0781]
[1741444307208,0.0397077,86687.0,86684.0,0.0801]
[1741444307420,0.0512427,86687.0,86684.0,0.0801]
[1741444308038,0.0397077,86687.0,86684.0,0.0801]
[1741444308576,0.0512427,86687.0,86684.0,0.0801]
[1741444308789,0.0397077,86687.0,86684.0,0.0801]
[1741444311190,0.0397077,86687.0,86684.0,0.322358]
[1741444312181,0.0397077,86687.0,86685.0,0.00666779]
[1741444312367,0.0397077,86687.0,86686.0,0.242252]
[1741444312713,0.0397077,86687.0,86684.0,0.322358]
[1741444312714,0.0397077,86687.0,86684.0,0.091636]
[1741444312938,0.0397077,86687.0,86686.0,0.00666779]
[1741444313122,0.0397077,86687.0,86684.0,0.320358]
[1741444313327,0.0387077,86687.0,86686.0,0.00666779]
[1741444313569,0.0387077,86687.0,86685.0,0.002]
[1741444313747,0.0397077,86687.0,86686.0,0.00666779]
[1741444314382,0.0397077,86687.0,86684.0,0.089636]
[1741444314654,0.0397077,86687.0,86685.0,0.00666779]
[1741444314866,0.0512427,86687.0,86685.0,0.00666779]
[1741444315253,0.2819577,86687.0,86685.0,0.00666779]
[1741444315493,0.011535,86686.0,86685.0,0.00666779]
[1741444315700,0.011535,86686.0,86684.0,0.0781]
[1741444316109,0.011535,86686.0,86685.0,0.00666779]
[1741444316889,0.011535,86686.0,86685.0,0.00866779]
[1741444317496,0.011535,86686.0,86685.0,0.00666779]
[1741444317703,0.011535,86686.0,86685.0,0.01066779]
[1741444318507,0.011535,86686.0,86685.0,0.01166779]
[1741444318925,0.011535,86686.0,86685.0,0.01066779]
[1741444319170,0.011535,86686.0,86685.0,0.01266779]
[1741444319830,0.242256,86685.0,86684.0,0.07267219]
[1741444320040,0.242256,86685.0,86684.0,0.07822868]
[1741444321074,0.242256,86685.0,86684.0,0.08322868]
[1741444322054,0.242256,86685.0,86684.0,0.08522868]
[1741444323733,0.26035269,86685.0,86684.0,0.08522868]
[1741444324849,0.242256,86685.0,86684.0,0.08522868]
[1741444326928,0.242256,86685.0,86684.0,0.01255649]
[1741444327163,0.542256,86685.0,86684.0,0.01255649]
[1741444327381,0.542256,86685.0,86684.0,0.007]
[1741444327879,0.3,86685.0,86684.0,0.007]
[1741444328147,0.311536,86685.0,86684.0,0.007]
[1741444328482,0.311536,86685.0,86684.0,0.002]
[1741444328833,0.542267,86681.0,86680.0,0.0451]
[1741444329074,0.54073845,86681.0,86680.0,0.0451]
[1741444330493,0.54073845,86681.0,86680.0,0.0491]
[1741444331045,0.0001699,86685.0,86683.0,0.0814]
[1741444331286,0.0001699,86685.0,86684.0,0.00553528]
[1741444331772,0.0117059,86685.0,86684.0,0.00553528]
[1741444332020,0.02980269,86685.0,86684.0,0.00553528]
[1741444332513,0.03080269,86685.0,86684.0,0.00553528]
[1741444332739,0.01926669,86685.0,86684.0,0.01707128]
[1741444332941,0.01926669,86685.0,86684.0,0.092936]
[1741444333127,0.01926669,86685.0,86684.0,0.09842872]
[1741444333766,0.01826669,86685.0,86684.0,0.09942872]
[1741444334089,0.01826669,86685.0,86684.0,0.10142872]
[1741444334301,0.02980269,86685.0,86684.0,0.08889272]
[1741444334507,0.01826669,86685.0,86684.0,0.09389272]
[1741444334809,0.01826669,86685.0,86684.0,0.0884]
[1741444334985,0.01826669,86685.0,86684.0,0.09389071]
[1741444335606,0.01826669,86685.0,86684.0,0.10542671]
[1741444335829,0.0001699,86685.0,86684.0,0.10542671]
[1741444336816,0.0001699,86685.0,86684.0,0.17102103]
[1741444337820,0.0001699,86685.0,86684.0,0.16486756]
[1741444338230,0.0001699,86685.0,86684.0,0.16602082]
[1741444338443,0.0001699,86685.0,86684.0,0.18439926]
[1741444338675,0.0001699,86685.0,86684.0,0.18239926]
[1741444339013,0.01826166,86685.0,86684.0,0.21039926]
[1741444339195,0.00017,86687.0,86686.0,0.036535]
[1741444339412,0.00017,86687.0,86686.0,0.60199568]
[1741444339624,0.00017,86687.0,86686.0,0.60084255]
[1741444340035,0.00017,86687.0,86686.0,0.62584255]
[1741444340455,0.01153,86726.0,86714.0,0.242175]
[1741444340665,0.01153,86726.0,86714.0,0.486515]
[1741444340913,0.01153,86726.0,86714.0,0.49192002]
[1741444341068,0.0191816,86727.0,86714.0,0.50646087]
[1741444341278,0.011529,86733.0,86714.0,0.50646087]
[1741444341485,0.011529,86731.0,86714.0,0.50646087]
[1741444342131,0.03073417,86727.0,86714.0,0.50646087]
[1741444342758,0.0001699,86740.0,86739.0,0.011528]
[1741444342927,0.0001699,86740.0,86739.0,0.39242]
[1741444343129,0.0116979,86740.0,86739.0,0.39763972]
[1741444343458,0.0116979,86740.0,86739.0,0.26933972]
[1741444343652,0.0116979,86740.0,86739.0,0.15329972]
[1741444344062,0.3116979,86740.0,86739.0,0.00521972]
[1741444344271,0.3116979,86740.0,86739.0,0.00821972]
[1741444344482,0.3116979,86740.0,86739.0,0.003]
[1741444344774,0.3116979,86740.0,86739.0,0.002]
[1741444344985,0.3001699,86740.0,86739.0,0.002]
[1741444345192,0.0001699,86740.0,86739.0,0.002]